fUST/lending_fUST_20250816
["ID","MTS","AMOUNT","RATE_DAILY","PERIOD"]
[379524956,1755321059544,-480.0,0.00022739,3]
[379524958,1755321059555,-480.0,0.00022739,3]
[379524960,1755321059564,-480.0,0.00022739,3]
[379524963,1755321059574,-225.488453,0.00022739,7]
[379524965,1755321059583,-225.488453,0.00022739,7]
[379524966,1755321059592,-416.00757877,0.00022739,3]
[379524968,1755321059602,-225.488453,0.00022739,7]
[379524970,1755321059611,-225.488453,0.00022739,7]
[379524972,1755321059620,-480.0,0.00022739,3]
[379524974,1755321059630,-480.0,0.00022739,3]
[379524976,1755321059640,-480.0,0.00022739,3]
[379524978,1755321059649,-480.0,0.00022739,3]
[379524980,1755321059658,-480.0,0.00022739,3]
[379524982,1755321059667,-480.0,0.00022739,3]
[379524985,1755321059678,-450.63447519,0.00022739,3]
[379524986,1755321059687,-1758.86,0.00022739,3]
[379524988,1755321059696,-480.0,0.00022739,3]
[379524990,1755321059706,-480.0,0.00022739,3]
[379524992,1755321059715,-480.0,0.00022739,3]
[379524994,1755321059724,-200.14458259,0.00022739,3]
[379524996,1755321059734,-480.0,0.00022739,3]
[379524998,1755321059743,-480.0,0.00022739,3]
[379525000,1755321059752,-480.0,0.00022739,3]
[379525002,1755321059762,-480.0,0.00022739,3]
[379525004,1755321059771,-480.0,0.00022739,3]
[379525006,1755321059781,-400.97765085,0.00022739,3]
[379525008,1755321059790,-480.0,0.00022739,3]
[379525010,1755321059800,-616.1,0.00022739,3]
[379525012,1755321059810,-480.0,0.00022739,3]
[379525014,1755321059819,-799.67,0.00022739,3]
[379525016,1755321059829,-401.11402265,0.00022739,3]
[379525018,1755321059838,-480.0,0.00022739,3]
[379525020,1755321059848,-480.0,0.00022739,3]
[379525022,1755321059858,-480.0,0.00022739,3]
[379525025,1755321059867,-151.0,0.00022739,7]
[379525026,1755321059877,-151.0,0.00022739,7]
[379525028,1755321059886,-480.0,0.00022739,3]
[379525030,1755321059895,-480.0,0.00022739,3]
[379525032,1755321059904,-480.0,0.00022739,3]
[379525034,1755321059913,-480.0,0.00022739,3]
[379525036,1755321059923,-480.0,0.00022739,3]
[379525038,1755321059932,-480.0,0.00022739,3]
[379525041,1755321059942,-480.0,0.00022739,3]
[379525043,1755321059952,-400.0,0.00022739,3]
[379525045,1755321059961,-480.0,0.00022739,3]
[379525047,1755321059970,-480.0,0.00022739,3]
[379525049,1755321059981,-480.0,0.00022739,3]
[379525051,1755321059990,-480.0,0.00022739,3]
[379525053,1755321060000,-480.0,0.00022739,3]
[379525055,1755321060010,-480.0,0.00022739,3]
[379525057,1755321060019,-480.0,0.00022739,3]
[379525058,1755321060028,-480.0,0.00022739,3]
[379525060,1755321060038,-480.0,0.00022739,3]
[379525062,1755321060048,-480.0,0.00022739,3]
[379525064,1755321060058,-158.99668575,0.00022739,3]
[379525066,1755321060067,-480.0,0.00022739,3]
[379525069,1755321060077,-480.0,0.00022739,3]
[379525071,1755321060087,-480.0,0.00022739,3]
[379525073,1755321060097,-480.0,0.00022739,3]
[379525075,1755321060106,-480.0,0.00022739,3]
[379525077,1755321060116,-480.0,0.00022739,3]
[379525079,1755321060126,-480.0,0.00022739,3]
[379525081,1755321060135,-480.0,0.00022739,3]
[379525083,1755321060145,-480.0,0.00022739,3]
[379525085,1755321060155,-480.0,0.00022739,3]
[379525099,1755321060277,-480.0,0.00022739,3]
[379525101,1755321060288,-480.0,0.00022739,3]
[379525103,1755321060302,-481.7,0.00022739,3]
[379525105,1755321060311,-480.0,0.00022739,3]
[379525107,1755321060322,-273.352886,0.00022739,7]
[379525109,1755321060334,-273.352886,0.00022739,7]
[379525111,1755321060344,-480.0,0.00022739,3]
[379525113,1755321060354,-273.352886,0.00022739,7]
[379525115,1755321060363,-480.0,0.00022739,3]
[379525117,1755321060372,-273.352886,0.00022739,7]
[379525119,1755321060381,-480.0,0.00022739,3]
[379525121,1755321060391,-480.0,0.00022739,3]
[379525123,1755321060400,-480.0,0.00022739,3]
[379525125,1755321060409,-400.0,0.00022739,3]
[379525127,1755321060419,-480.0,0.00022739,3]
[379525129,1755321060428,-5341.5,0.00022739,3]
[379525131,1755321060438,-480.0,0.00022739,3]
[379525133,1755321060448,-274.23524043,0.00022739,3]
[379525135,1755321060457,-238.885278,0.00022739,7]
[379525137,1755321060467,-995.33,0.00022739,3]
[379525139,1755321060476,-582.77,0.00022739,3]
[379525141,1755321060485,-480.0,0.00022739,3]
[379525143,1755321060494,-2225.198077,0.00022739,7]
[379525145,1755321060503,-406.2899372,0.00022739,3]
[379525147,1755321060513,-2225.198077,0.00022739,7]
[379525149,1755321060522,-2033.5,0.00022739,3]
[379525151,1755321060531,-2225.198077,0.00022739,7]
[379525153,1755321060540,-480.0,0.00022739,3]
[379525156,1755321060551,-2225.198077,0.00022739,7]
[379525158,1755321060560,-480.0,0.00022739,3]
[379525160,1755321060570,-480.0,0.00022739,3]
[379525162,1755321060579,-480.0,0.00022739,3]
[379525164,1755321060588,-1020.87,0.00022739,3]
[379525166,1755321060597,-480.0,0.00022739,3]
[379525168,1755321060606,-480.0,0.00022739,3]
[379525170,1755321060616,-480.0,0.00022739,3]
[379525172,1755321060626,-516.01,0.00022739,3]
[379525174,1755321060635,-418.32930879,0.00022739,3]
[379525176,1755321060644,-586.22,0.00022739,3]
[379525178,1755321060654,-480.0,0.00022739,3]
[379525180,1755321060663,-480.0,0.00022739,3]
[379525182,1755321060672,-480.0,0.00022739,3]
[379525184,1755321060681,-480.0,0.00022739,3]
[379525186,1755321060690,-538.72865993,0.00022739,3]
[379525188,1755321060699,-480.0,0.00022739,3]
[379525190,1755321060708,-480.0,0.00022739,3]
[379525192,1755321060717,-363.69295648,0.00022739,3]
[379525194,1755321060726,-428.75529984,0.00022739,3]
[379525196,1755321060735,-172.477039,0.00022739,7]
[379525197,1755321060745,-172.477039,0.00022739,7]
[379525199,1755321060756,-439.695698,0.00022739,7]
[379525202,1755321060765,-439.695698,0.00022739,7]
[379525204,1755321060774,-480.0,0.00022739,3]
[379525206,1755321060783,-151.0,0.00022739,3]
[379525208,1755321060793,-151.0,0.00022739,3]
[379525210,1755321060803,-172.477039,0.00022739,7]
[379525211,1755321060812,-172.477039,0.00022739,7]
[379525213,1755321060821,-439.695698,0.00022739,7]
[379525216,1755321060831,-500.0,0.00022739,3]
[379525217,1755321060840,-439.695698,0.00022739,7]
[379525220,1755321060849,-480.0,0.00022739,3]
[379525222,1755321060859,-490.88,0.00022739,3]
[379525223,1755321060868,-480.0,0.00022739,3]
[379525226,1755321060877,-480.0,0.00022739,3]
[379525228,1755321060887,-480.0,0.00022739,3]
[379525230,1755321060896,-605.17,0.00022739,3]
[379525231,1755321060905,-480.0,0.00022739,3]
[379525233,1755321060914,-480.0,0.00022739,3]
[379525235,1755321060923,-480.0,0.00022739,3]
[379525237,1755321060932,-480.0,0.00022739,3]
[379525239,1755321060941,-480.0,0.00022739,3]
[379525241,1755321060952,-403.78300779,0.00022739,3]
[379525243,1755321060961,-480.0,0.00022739,3]
[379525245,1755321060971,-480.0,0.00022739,3]
[379525247,1755321060979,-480.0,0.00022739,3]
[379525250,1755321060989,-480.0,0.00022739,3]
[379525252,1755321060998,-401.17937904,0.00022739,3]
[379525253,1755321061007,-480.0,0.00022739,3]
[379525256,1755321061018,-604.47114283,0.00022739,3]
[379525258,1755321061028,-480.0,0.00022739,3]
[379525259,1755321061038,-480.0,0.00022739,3]
[379525261,1755321061047,-783.47,0.00022739,3]
[379525263,1755321061057,-480.0,0.00022739,3]
[379525265,1755321061066,-480.0,0.00022739,3]
[379525267,1755321061075,-480.0,0.00022739,3]
[379525269,1755321061084,-596.10137762,0.00022739,3]
[379525271,1755321061093,-480.0,0.00022739,3]
[379525273,1755321061103,-552.91,0.00022739,3]
[379525275,1755321061112,-480.0,0.00022739,3]
[379525278,1755321061122,-480.0,0.00022739,3]
[379525279,1755321061132,-480.0,0.00022739,3]
[379525281,1755321061142,-480.0,0.00022739,3]
[379525283,1755321061153,-480.0,0.00022739,3]
[379525286,1755321061163,-2535.97,0.00022739,3]
[379525287,1755321061172,-151.0,0.00022739,7]
[379525289,1755321061181,-151.0,0.00022739,7]
[379525292,1755321061191,-480.0,0.00022739,3]
[379525293,1755321061200,-480.0,0.00022739,3]
[379525295,1755321061209,-400.0,0.00022739,3]
[379525298,1755321061218,-480.0,0.00022739,3]
[379525299,1755321061227,-480.0,0.00022739,3]
[379525302,1755321061237,-480.0,0.00022739,3]
[379525303,1755321061246,-480.0,0.00022739,3]
[379525305,1755321061259,-382.01753951,0.00022739,3]
[379525308,1755321061269,-433.422319,0.00022739,7]
[379525309,1755321061278,-433.422319,0.00022739,7]
[379525312,1755321061287,-480.0,0.00022739,3]
[379525313,1755321061297,-480.0,0.00022739,3]
[379525315,1755321061307,-480.0,0.00022739,3]
[379525317,1755321061316,-433.422319,0.00022739,7]
[379525319,1755321061326,-433.422319,0.00022739,7]
[379525321,1755321061336,-480.0,0.00022739,3]
[379525323,1755321061345,-480.0,0.00022739,3]
[379525325,1755321061354,-480.0,0.00022739,3]
[379525327,1755321061363,-480.0,0.00022739,3]
[379525329,1755321061372,-480.0,0.00022739,3]
[379525331,1755321061381,-480.0,0.00022739,3]
[379525333,1755321061390,-480.0,0.00022739,3]
[379525335,1755321061399,-480.0,0.00022739,3]
[379525337,1755321061409,-480.0,0.00022739,3]
[379525339,1755321061420,-480.0,0.00022739,3]
[379525341,1755321061429,-3125.46,0.00022739,3]
[379525343,1755321061438,-480.0,0.00022739,3]
[379525345,1755321061447,-562.86,0.00022739,3]
[379525347,1755321061456,-480.0,0.00022739,3]
[379525349,1755321061465,-198.0,0.00022739,3]
[379525351,1755321061474,-480.0,0.00022739,3]
[379525353,1755321061484,-151.0,0.00022739,7]
[379525355,1755321061493,-480.0,0.00022739,3]
[379525357,1755321061502,-607.19,0.00022739,3]
[379525359,1755321061511,-480.0,0.00022739,3]
[379525361,1755321061520,-480.0,0.00022739,3]
[379525363,1755321061530,-480.0,0.00022739,3]
[379525365,1755321061539,-480.0,0.00022739,3]
[379525367,1755321061549,-480.0,0.00022739,3]
[379525369,1755321061559,-480.0,0.00022739,3]
[379525371,1755321061568,-480.0,0.00022739,3]
[379525373,1755321061577,-480.0,0.00022739,3]
[379525375,1755321061586,-317.71934754,0.00022739,3]
[379525377,1755321061595,-8931.81,0.00022739,3]
[379525379,1755321061604,-480.0,0.00022739,2]
[379525381,1755321061613,-480.0,0.00022739,3]
[379525383,1755321061623,-480.0,0.00022739,3]
[379525385,1755321061632,-480.0,0.00022739,3]
[379525387,1755321061641,-480.0,0.00022739,3]
[379525389,1755321061650,-480.0,0.00022739,3]
[379525391,1755321061659,-480.0,0.00022739,3]
[379525393,1755321061669,-892.33,0.00022739,3]
[379525395,1755321061679,-1155.91,0.00022739,3]
[379525397,1755321061688,-480.0,0.00022739,3]
[379525399,1755321061697,-480.0,0.00022739,3]
[379525401,1755321061706,-2278.53,0.00022739,3]
[379525403,1755321061715,-480.0,0.00022739,3]
[379525405,1755321061724,-480.0,0.00022739,3]
[379525407,1755321061733,-480.0,0.00022739,3]
[379525409,1755321061742,-224.33882342,0.00022739,3]
[379525411,1755321061751,-385.60498488,0.00022739,3]
[379525413,1755321061761,-3713.04,0.00022739,3]
[379525415,1755321061770,-359.02968,0.00022739,7]
[379525417,1755321061779,-359.02968,0.00022739,7]
[379525419,1755321061788,-480.0,0.00022739,3]
[379525421,1755321061797,-359.02968,0.00022739,7]
[379525423,1755321061808,-359.02968,0.00022739,7]
[379525425,1755321061817,-480.0,0.00022739,3]
[379525427,1755321061826,-151.0,0.00022739,7]
[379525429,1755321061835,-151.0,0.00022739,7]
[379525431,1755321061844,-480.0,0.00022739,3]
[379525433,1755321061854,-480.0,0.00022739,3]
[379525435,1755321061864,-400.0,0.00022739,3]
[379525437,1755321061873,-480.0,0.00022739,3]
[379525439,1755321061882,-480.0,0.00022739,3]
[379525441,1755321061892,-480.0,0.00022739,3]
[379525443,1755321061901,-480.0,0.00022739,3]
[379525445,1755321061911,-480.0,0.00022739,3]
[379525447,1755321061921,-480.0,0.00022739,3]
[379525449,1755321061930,-400.0,0.00022739,3]
[379525451,1755321061939,-401.47640328,0.00022739,3]
[379525453,1755321061948,-400.0,0.00022739,3]
[379525455,1755321061959,-480.0,0.00022739,3]
[379525457,1755321061968,-480.0,0.00022739,3]
[379525459,1755321061977,-151.0,0.00022739,7]
[379525461,1755321061986,-151.0,0.00022739,7]
[379525463,1755321061996,-480.0,0.00022739,3]
[379525465,1755321062005,-480.0,0.00022739,3]
[379525467,1755321062014,-480.0,0.00022739,3]
[379525469,1755321062023,-1046.47,0.00022739,3]
[379525471,1755321062033,-398.27566146,0.00022739,3]
[379525473,1755321062042,-198.0,0.00022739,3]
[379525475,1755321062051,-480.0,0.00022739,3]
[379525477,1755321062060,-480.0,0.00022739,3]
[379525479,1755321062070,-556.586596,0.00022739,7]
[379525481,1755321062079,-480.0,0.00022739,3]
[379525483,1755321062088,-556.586596,0.00022739,7]
[379525485,1755321062097,-480.0,0.00022739,3]
[379525487,1755321062107,-480.0,0.00022739,3]
[379525489,1755321062115,-480.0,0.00022739,3]
[379525491,1755321062125,-556.586596,0.00022739,7]
[379525493,1755321062134,-556.586596,0.00022739,7]
[379525495,1755321062143,-480.0,0.00022739,3]
[379525497,1755321062152,-480.0,0.00022739,3]
[379525499,1755321062160,-497.23312805,0.00022739,3]
[379525501,1755321062170,-480.0,0.00022739,3]
[379525503,1755321062179,-480.0,0.00022739,3]
[379525505,1755321062188,-480.0,0.00022739,3]
[379525507,1755321062198,-688.73,0.00022739,3]
[379525509,1755321062207,-750.31,0.00022739,3]
[379525511,1755321062215,-480.0,0.00022739,3]
[379525513,1755321062224,-480.0,0.00022739,3]
[379525515,1755321062234,-480.0,0.00022739,3]
[379525517,1755321062243,-596.16012847,0.00022739,3]
[379525519,1755321062256,-480.0,0.00022739,3]
[379525521,1755321062265,-480.0,0.00022739,3]
[379525523,1755321062274,-480.0,0.00022739,3]
[379525525,1755321062283,-647.63,0.00022739,3]
[379525526,1755321062295,-480.0,0.00022739,3]
[379525528,1755321062305,-480.0,0.00022739,3]
[379525530,1755321062315,-480.0,0.00022739,3]
[379525532,1755321062326,-2276.91,0.00022739,3]
[379525534,1755321062335,-480.0,0.00022739,3]
[379525536,1755321062345,-480.0,0.00022739,3]
[379525538,1755321062354,-1515.34,0.00022739,3]
[379525540,1755321062363,-480.0,0.00022739,3]
[379525542,1755321062374,-480.0,0.00022739,3]
[379525545,1755321062386,-591.5458643,0.00022739,3]
[379525547,1755321062395,-572.04183524,0.00022739,3]
[379525549,1755321062404,-480.0,0.00022739,3]
[379525551,1755321062416,-480.0,0.00022739,3]
[379525553,1755321062425,-480.0,0.00022739,3]
[379525555,1755321062435,-480.0,0.00022739,3]
[379525557,1755321062443,-480.0,0.00022739,3]
[379525559,1755321062453,-842.25,0.00022739,3]
[379525560,1755321062461,-480.0,0.00022739,3]
[379525562,1755321062471,-480.0,0.00022739,3]
[379525565,1755321062481,-1045.92,0.00022739,3]
[379525567,1755321062490,-2165.56,0.00022739,3]
[379525569,1755321062501,-761.6,0.00022739,3]
[379525571,1755321062512,-199.70611391,0.00022739,3]
[379525573,1755321062521,-151.0,0.00022739,3]
[379525575,1755321062531,-480.0,0.00022739,3]
[379525577,1755321062540,-480.0,0.00022739,3]
[379525579,1755321062549,-151.2500064,0.00022739,3]
[379525581,1755321062558,-278.09689054,0.00022739,3]
[379525583,1755321062568,-151.65692859,0.00022739,3]
[379525585,1755321062577,-151.0,0.00022739,3]
[379525587,1755321062588,-480.0,0.00022739,3]
[379525589,1755321062597,-882.88,0.00022739,3]
[379525591,1755321062607,-501.7,0.00022739,3]
[379525593,1755321062616,-480.0,0.00022739,3]
[379525595,1755321062626,-480.0,0.00022739,3]
[379525608,1755321062746,-480.0,0.00022739,3]
[379525610,1755321062756,-738.72,0.00022739,3]
[379525612,1755321062766,-480.0,0.00022739,3]
[379525614,1755321062776,-480.0,0.00022739,3]
[379525616,1755321062786,-480.0,0.00022739,3]
[379525618,1755321062795,-480.0,0.00022739,3]
[379525620,1755321062805,-150.0,0.00022773,2]
[379525622,1755321062815,-151.0,0.000228,9]
[379525624,1755321062824,-168.0,0.00022852,2]
[379525626,1755321062833,-200.0,0.00022888,20]
[379525628,1755321062843,-200.0,0.00022888,20]
[379525630,1755321062853,-200.0,0.00022888,20]
[379525632,1755321062863,-200.0,0.00022888,20]
[379525633,1755321062872,-168.0,0.000229,2]
[379525634,1755321062882,-500.0,0.00022911,2]
[379525635,1755321062891,-542.75803731,0.00022913,2]
[379525636,1755321062900,-571.85509771,0.00022948,2]
[379525637,1755321062910,-151.0,0.0002299,7]
[379525638,1755321062920,-515.36451,0.0002299,7]
[379525639,1755321062929,-515.36451,0.0002299,7]
[379525640,1755321062938,-151.0,0.0002299,7]
[379525641,1755321062948,-151.0,0.0002299,7]
[379525642,1755321062956,-151.0,0.0002299,7]
[379525643,1755321062966,-947.590397,0.0002299,7]
[379525644,1755321062977,-947.590397,0.0002299,7]
[379525645,1755321062986,-266.922475,0.0002299,7]
[379525646,1755321062995,-266.922475,0.0002299,7]
[379525648,1755321063005,-502.560039,0.0002299,7]
[379525650,1755321063014,-502.560039,0.0002299,7]
[379525652,1755321063023,-151.0,0.0002299,7]
[379525654,1755321063032,-151.655297,0.0002299,7]
[379525656,1755321063042,-151.0,0.0002299,7]
[379525658,1755321063052,-151.0,0.0002299,7]
[379525660,1755321063062,-151.0,0.0002299,7]
[379525662,1755321063071,-151.0,0.0002299,7]
[379525664,1755321063080,-151.0,0.0002299,7]
[379525666,1755321063089,-151.0,0.0002299,7]
[379525668,1755321063099,-169.573509,0.0002299,7]
[379525670,1755321063109,-169.573509,0.0002299,7]
[379525672,1755321063119,-1098.069024,0.0002299,7]
[379525674,1755321063127,-1098.069024,0.0002299,7]
[379525676,1755321063136,-151.0,0.0002299,7]
[379525678,1755321063145,-471.735705,0.0002299,7]
[379525680,1755321063155,-471.735705,0.0002299,7]
[379525682,1755321063164,-273.352886,0.0002299,7]
[379525684,1755321063173,-273.352886,0.0002299,7]
[379525686,1755321063183,-151.0,0.0002299,7]
[379525688,1755321063192,-433.422319,0.0002299,7]
[379525689,1755321063201,-433.422318,0.0002299,7]
[379525691,1755321063210,-156.608266,0.0002299,7]
[379525693,1755321063220,-151.0,0.0002299,7]
[379525695,1755321063229,-556.586596,0.0002299,7]
[379525697,1755321063238,-556.586594,0.0002299,7]
[379525699,1755321063249,-151.0,0.00023,7]
[379525701,1755321063266,-111513.0,0.00023,7]
[379525703,1755321063275,-151.0,0.00023,7]
[379525705,1755321063284,-151.0,0.00023,7]
[379525707,1755321063294,-151.0,0.00023,7]
[379525709,1755321063304,-151.0,0.00023,7]
[379525711,1755321063313,-260.678873,0.00023,7]
[379525713,1755321063323,-260.678873,0.00023,7]
[379525715,1755321063332,-151.0,0.00023,7]
[379525717,1755321063342,-531.508339,0.00023,7]
[379525719,1755321063351,-531.508339,0.00023,7]
[379525721,1755321063360,-151.0,0.00023,7]
[379525723,1755321063370,-172.759334,0.00023,7]
[379525725,1755321063379,-151.0,0.00023,7]
[379525727,1755321063389,-172.759334,0.00023,7]
[379525729,1755321063399,-644.099545,0.00023,7]
[379525730,1755321063408,-644.099545,0.00023,7]
[379525732,1755321063417,-151.0,0.00023,7]
[379525734,1755321063427,-151.0,0.00023,7]
[379525736,1755321063437,-151.0,0.00023,7]
[379525738,1755321063446,-151.0,0.00023,7]
[379525740,1755321063456,-151.0,0.00023,7]
[379525742,1755321063466,-151.0,0.00023,7]
[379525744,1755321063475,-151.0,0.00023,7]
[379525746,1755321063484,-151.0,0.00023,7]
[379525748,1755321063494,-284.05731,0.00023,7]
[379525750,1755321063503,-151.0,0.00023,7]
[379525752,1755321063512,-151.0,0.00023,7]
[379525754,1755321063522,-169.573509,0.00023,7]
[379525756,1755321063532,-169.573509,0.00023,7]
[379525758,1755321063541,-1098.069024,0.00023,7]
[379525760,1755321063551,-1098.069024,0.00023,7]
[379525762,1755321063560,-151.0,0.00023,7]
[379525764,1755321063570,-471.735705,0.00023,7]
[379525766,1755321063580,-471.735705,0.00023,7]
[379525768,1755321063591,-225.488453,0.00023,7]
[379525770,1755321063601,-225.488453,0.00023,7]
[379525772,1755321063611,-151.0,0.00023,7]
[379525774,1755321063620,-160.0,0.00023,2]
[379525776,1755321063629,-273.352886,0.00023,7]
[379525778,1755321063639,-273.352886,0.00023,7]
[379525780,1755321063648,-2225.198077,0.00023,7]
[379525782,1755321063658,-2225.198077,0.00023,7]
[379525784,1755321063667,-172.477039,0.00023,7]
[379525786,1755321063676,-439.695698,0.00023,7]
[379525788,1755321063686,-172.47704,0.00023,7]
[379525790,1755321063696,-439.695698,0.00023,7]
[379525792,1755321063706,-190.933692,0.00023,2]
[379525794,1755321063717,-216.80276362,0.00023,3]
[379525796,1755321063736,-359.02968,0.00023,7]
[379525798,1755321063755,-359.02968,0.00023,7]
[379525800,1755321063775,-843.58077381,0.00023,3]
[379525802,1755321063795,-151.0,0.00023013,3]
[379525804,1755321063814,-151.0,0.00023013,3]
[379525806,1755321063835,-500.0,0.00023013,3]
[379525808,1755321063856,-167.74388414,0.00023013,3]
[379525810,1755321063868,-254.07947778,0.00023013,3]
[379525812,1755321063877,-245.851675,0.00023013,7]
[379525814,1755321063887,-245.851675,0.00023013,7]
[379525816,1755321063897,-153.34226,0.00023013,7]
[379525817,1755321063907,-151.0,0.00023013,7]
[379525819,1755321063916,-151.0,0.00023013,7]
[379525821,1755321063926,-202.493512,0.00023013,7]
[379525824,1755321063935,-202.493512,0.00023013,7]
[379525825,1755321063945,-151.0,0.00023013,7]
[379525827,1755321063955,-515.36451,0.00023013,7]
[379525829,1755321063964,-515.36451,0.00023013,7]
[379525831,1755321063973,-151.0,0.00023013,7]
[379525833,1755321063982,-151.0,0.00023013,7]
[379525835,1755321063992,-152.639005,0.00023013,7]
[379525837,1755321064001,-947.590397,0.00023013,7]
[379525839,1755321064011,-947.590397,0.00023013,7]
[379525841,1755321064021,-266.922475,0.00023013,7]
[379525843,1755321064031,-266.922475,0.00023013,7]
[379525845,1755321064041,-502.560039,0.00023013,7]
[379525847,1755321064050,-502.560039,0.00023013,7]
[379525849,1755321064060,-151.0,0.00023013,7]
[379525851,1755321064070,-380.0,0.00023013,3]
[379525853,1755321064079,-360.0,0.00023013,3]
[379525855,1755321064089,-480.0,0.00023013,3]
[379525857,1755321064098,-480.0,0.00023013,3]
[379525859,1755321064108,-480.0,0.00023013,3]
[379525861,1755321064118,-480.0,0.00023013,3]
[379525863,1755321064127,-480.0,0.00023013,3]
[379525865,1755321064137,-480.0,0.00023013,3]
[379525867,1755321064146,-480.0,0.00023013,3]
[379525869,1755321064156,-151.865112,0.00023013,7]
[379525871,1755321064165,-480.0,0.00023013,3]
[379525873,1755321064174,-381.60655516,0.00023013,3]
[379525875,1755321064183,-480.0,0.00023013,3]
[379525877,1755321064193,-398.77021984,0.00023013,3]
[379525879,1755321064203,-151.0,0.00023013,7]
[379525881,1755321064213,-381.97259523,0.00023013,3]
[379525883,1755321064223,-480.0,0.00023013,3]
[379525885,1755321064232,-151.0,0.00023013,7]
[379525887,1755321064241,-151.0,0.00023013,7]
[379525889,1755321064254,-503.20190082,0.00023013,3]
[379525891,1755321064263,-480.0,0.00023013,3]
[379525893,1755321064272,-152.43041,0.00023013,7]
[379525895,1755321064281,-480.0,0.00023013,3]
[379525897,1755321064291,-480.0,0.00023013,3]
[379525899,1755321064300,-480.0,0.00023013,3]
[379525901,1755321064310,-480.0,0.00023013,3]
[379525903,1755321064319,-169.573509,0.00023013,7]
[379525905,1755321064330,-480.0,0.00023013,3]
[379525907,1755321064340,-381.70088578,0.00023013,3]
[379525909,1755321064349,-188.54154148,0.00023013,3]
[379525911,1755321064358,-169.573509,0.00023013,7]
[379525912,1755321064367,-480.0,0.00023013,3]
[379525914,1755321064376,-1098.069024,0.00023013,7]
[379525917,1755321064386,-480.0,0.00023013,3]
[379525919,1755321064395,-1098.069024,0.00023013,7]
[379525920,1755321064404,-480.0,0.00023013,3]
[379525922,1755321064414,-480.0,0.00023013,3]
[379525924,1755321064423,-480.0,0.00023013,3]
[379525926,1755321064433,-480.0,0.00023013,3]
[379525928,1755321064443,-480.0,0.00023013,3]
[379525930,1755321064453,-480.0,0.00023013,3]
[379525932,1755321064463,-480.0,0.00023013,3]
[379525934,1755321064472,-380.0,0.00023013,3]
[379525936,1755321064482,-480.0,0.00023013,3]
[379525938,1755321064491,-380.0,0.00023013,3]
[379525940,1755321064501,-480.0,0.00023013,3]
[379525942,1755321064510,-380.0,0.00023013,3]
[379525944,1755321064520,-380.0,0.00023013,3]
[379525946,1755321064529,-480.0,0.00023013,3]
[379525948,1755321064538,-480.0,0.00023013,3]
[379525950,1755321064548,-553.31,0.00023013,3]
[379525952,1755321064557,-480.0,0.00023013,3]
[379525954,1755321064567,-480.0,0.00023013,3]
[379525956,1755321064576,-151.0,0.00023013,7]
[379525958,1755321064585,-480.0,0.00023013,3]
[379525960,1755321064594,-480.0,0.00023013,3]